fUST/lending_fUST_20241216
["ID","MTS","AMOUNT","RATE_DAILY","PERIOD"]
[345548847,1734330638588,-408.065282,0.00027671,7]
[345548848,1734330638598,-500.0,0.00027671,7]
[345548850,1734330638607,-151.0,0.00027671,7]
[345548851,1734330638616,-151.0,0.00027671,7]
[345548853,1734330638629,-151.0,0.00027671,7]
[345548854,1734330638639,-500.0,0.00027671,7]
[345548855,1734330638648,-151.0,0.00027671,7]
[345548857,1734330638658,-151.0,0.00027671,7]
[345548858,1734330638667,-151.0,0.00027671,7]
[345548860,1734330638677,-151.0,0.00027671,7]
[345548861,1734330638687,-151.0,0.00027671,7]
[345548862,1734330638696,-322.83351555,0.00027671,7]
[345548864,1734330638705,-500.0,0.00027671,7]
[345548865,1734330638714,-500.0,0.00027671,7]
[345548867,1734330638724,-151.0,0.00027671,7]
[345548868,1734330638733,-151.0,0.00027671,7]
[345548869,1734330638742,-151.0,0.00027671,7]
[345548871,1734330638752,-151.0,0.00027671,7]
[345548872,1734330638761,-500.0,0.00027671,7]
[345548874,1734330638770,-352.417597,0.00027671,7]
[345548875,1734330638779,-352.417597,0.00027671,7]
[345548877,1734330638788,-385.504538,0.00027671,7]
[345548878,1734330638798,-385.504538,0.00027671,7]
[345548879,1734330638807,-352.417597,0.00027671,7]
[345548880,1734330638816,-352.417597,0.00027671,7]
[345548881,1734330638825,-385.504538,0.00027671,7]
[345548882,1734330638835,-385.504538,0.00027671,7]
[345548883,1734330638844,-500.0,0.00027671,7]
[345548884,1734330638853,-500.0,0.00027671,7]
[345548885,1734330638862,-890.41,0.00027671,7]
[345548886,1734330638871,-500.0,0.00027671,7]
[345548887,1734330638880,-752.969883,0.00027671,7]
[345548888,1734330638889,-752.969883,0.00027671,7]
[345548889,1734330638898,-752.969883,0.00027671,7]
[345548890,1734330638907,-752.969883,0.00027671,7]
[345548891,1734330638916,-500.0,0.00027671,7]
[345548892,1734330638927,-500.0,0.00027671,7]
[345548893,1734330638936,-1064.51,0.00027671,7]
[345548894,1734330638946,-273.16806426,0.00027671,7]
[345548895,1734330638955,-201.21609,0.00027671,7]
[345548896,1734330639043,-201.21609,0.00027671,7]
[345548897,1734330639052,-201.21609,0.00027671,7]
[345548898,1734330639065,-201.21609,0.00027671,7]
[345548899,1734330639074,-151.0,0.00027671,7]
[345548900,1734330639083,-151.0,0.00027671,7]
[345548901,1734330639092,-500.0,0.00027671,7]
[345548902,1734330639103,-500.0,0.00027671,7]
[345548903,1734330639112,-511.85910151,0.00027671,7]
[345548904,1734330639121,-1771.85,0.00027671,7]
[345548905,1734330639131,-500.0,0.00027671,7]
[345548906,1734330639140,-595.96,0.00027671,7]
[345548907,1734330639150,-500.0,0.00027671,7]
[345548908,1734330639159,-500.0,0.00027671,7]
[345548909,1734330639169,-513.64269642,0.00027671,7]
[345548910,1734330639179,-500.0,0.00027671,7]
[345548911,1734330639188,-500.0,0.00027671,7]
[345548912,1734330639197,-500.0,0.00027671,7]
[345548913,1734330639206,-500.0,0.00027671,7]
[345548914,1734330639216,-500.0,0.00027671,7]
[345548916,1734330639225,-500.0,0.00027671,7]
[345548918,1734330639234,-695.01,0.00027671,5]
[345548920,1734330639243,-500.0,0.00027671,7]
[345548922,1734330639252,-1000.0,0.00027671,2]
[345548924,1734330639262,-500.0,0.00027671,7]
[345548926,1734330639271,-500.0,0.00027671,7]
[345548928,1734330639279,-500.0,0.00027671,7]
[345548930,1734330639289,-336.869161,0.00027671,7]
[345548932,1734330639298,-336.869161,0.00027671,7]
[345548933,1734330639307,-500.0,0.00027671,7]
[345548935,1734330639316,-336.869161,0.00027671,7]
[345548937,1734330639326,-336.869161,0.00027671,7]
[345548939,1734330639336,-500.0,0.00027671,7]
[345548941,1734330639345,-500.0,0.00027671,7]
[345548943,1734330639354,-500.0,0.00027671,2]
[345548945,1734330639363,-2859.63,0.00027671,7]
[345548947,1734330639373,-151.0,0.00027671,7]
[345548949,1734330639382,-347.832423,0.00027671,7]
[345548951,1734330639391,-151.0,0.00027671,7]
[345548953,1734330639400,-151.0,0.00027671,7]
[345548955,1734330639410,-151.0,0.00027671,7]
[345548957,1734330639419,-347.832423,0.00027671,7]
[345548959,1734330639434,-305.0,0.00027671,2]
[345548962,1734330639443,-1630.0366937,0.00027719,4]
[345548964,1734330639452,-157.8203349,0.00027753,2]
[345548966,1734330639461,-151.0,0.00027798,6]
[345548968,1734330639471,-157.82033491,0.00027808,2]
[345548970,1734330639480,-1953.20724434,0.00027889,2]
[345548972,1734330639489,-151.0,0.000279,10]
[345548974,1734330639498,-500.0,0.00027921,5]
[345548976,1734330639507,-151.0,0.00027921,7]
[345548978,1734330639516,-241.037004,0.00027921,7]
[345548980,1734330639525,-241.037004,0.00027921,7]
[345548982,1734330639535,-600.0,0.00027923,2]
[345548984,1734330639544,-752.969883,0.00027943,7]
[345548986,1734330639554,-752.969883,0.00027943,7]
[345548988,1734330639563,-201.21609,0.00027943,7]
[345548990,1734330639573,-201.21609,0.00027943,7]
[345548992,1734330639582,-151.0,0.00027943,7]
[345548994,1734330639592,-347.832423,0.00027943,7]
[345548996,1734330639601,-151.0,0.00027944,7]
[345548998,1734330639611,-408.065282,0.00027944,7]
[345549000,1734330639620,-408.065282,0.00027944,7]
[345549002,1734330639630,-151.0,0.00027945,7]
[345549004,1734330639640,-500.0,0.00027945,7]
[345549006,1734330639649,-151.0,0.00027945,7]
[345549008,1734330639658,-500.0,0.00027945,7]
[345549011,1734330639668,-500.0,0.00027945,7]
[345549015,1734330639679,-161.09788,0.00027945,7]
[345549018,1734330639688,-500.0,0.00027945,7]
[345549021,1734330639697,-462.848142,0.00027945,7]
[345549023,1734330639706,-500.0,0.00027945,7]
[345549026,1734330639715,-462.848142,0.00027945,7]
[345549029,1734330639724,-500.0,0.00027945,7]
[345549032,1734330639734,-506.19223073,0.00027945,7]
[345549035,1734330639742,-500.0,0.00027945,7]
[345549038,1734330639752,-151.0,0.00027945,7]
[345549041,1734330639761,-2338.05,0.00027945,2]
[345549044,1734330639770,-500.0,0.00027945,7]
[345549047,1734330639779,-151.0,0.00027945,7]
[345549050,1734330639789,-477.16012245,0.00027945,7]
[345549053,1734330639798,-582.99,0.00027945,7]
[345549056,1734330639807,-151.0,0.00027945,7]
[345549059,1734330639816,-161.064489,0.00027945,7]
[345549062,1734330639825,-161.064489,0.00027945,7]
[345549066,1734330639835,-151.0,0.00027945,7]
[345549069,1734330639849,-500.0,0.00027945,7]
[345549074,1734330639864,-504.59004627,0.00027945,7]
[345549077,1734330639878,-511.69054435,0.00027945,7]
[345549081,1734330639889,-504.77057333,0.00027945,7]
[345549085,1734330639902,-502.8526723,0.00027945,7]
[345549088,1734330639915,-174.10327164,0.00027945,7]
[345549092,1734330639929,-345.048343,0.00027945,7]
[345549096,1734330639944,-345.048343,0.00027945,7]
[345549100,1734330639957,-345.048343,0.00027945,7]
[345549104,1734330639972,-345.048343,0.00027945,7]
[345549109,1734330639986,-328.64434003,0.00027945,7]
[345549112,1734330639999,-500.0,0.00027945,7]
[345549115,1734330640011,-503.89135592,0.00027945,7]
[345549118,1734330640023,-502.62096378,0.00027945,7]
[345549123,1734330640035,-502.81964183,0.00027945,7]
[345549126,1734330640048,-501.80392648,0.00027945,7]
[345549130,1734330640063,-514.1989873,0.00027945,7]
[345549133,1734330640076,-151.0,0.00027945,7]
[345549135,1734330640086,-151.0,0.00027945,7]
[345549137,1734330640097,-500.0,0.00027945,7]
[345549140,1734330640110,-503.63843253,0.00027945,7]
[345549142,1734330640123,-500.0,0.00027945,7]
[345549144,1734330640136,-500.0,0.00027945,7]
[345549147,1734330640148,-505.27995439,0.00027945,7]
[345549149,1734330640161,-500.0,0.00027945,7]
[345549151,1734330640175,-386.10589763,0.00027945,7]
[345549154,1734330640189,-500.0,0.00027945,7]
[345549156,1734330640202,-336.79412279,0.00027945,7]
[345549158,1734330640213,-151.0,0.00027945,7]
[345549160,1734330640224,-507.99473097,0.00027945,7]
[345549163,1734330640236,-500.0,0.00027945,7]
[345549165,1734330640248,-68254.04,0.00027945,7]
[345549167,1734330640265,-520.65637676,0.00027945,7]
[345549170,1734330640278,-511.54555679,0.00027945,7]
[345549172,1734330640288,-500.0,0.00027945,7]
[345549174,1734330640300,-566.06676919,0.00027945,7]
[345549176,1734330640312,-151.0,0.00027945,7]
[345549178,1734330640325,-151.0,0.00027945,7]
[345549181,1734330640336,-151.0,0.00027945,7]
[345549183,1734330640347,-151.0,0.00027945,7]
[345549185,1734330640358,-835.38,0.00027945,7]
[345549187,1734330640370,-500.0,0.00027945,7]
[345549190,1734330640383,-500.0,0.00027945,7]
[345549192,1734330640395,-241.037004,0.00027945,7]
[345549194,1734330640406,-241.037004,0.00027945,7]
[345549196,1734330640418,-241.037004,0.00027945,7]
[345549198,1734330640432,-241.037004,0.00027945,7]
[345549201,1734330640443,-408.065282,0.00027945,7]
[345549203,1734330640456,-408.065282,0.00027945,7]
[345549205,1734330640467,-500.0,0.00027945,7]
[345549207,1734330640478,-151.0,0.00027945,7]
[345549210,1734330640490,-151.0,0.00027945,7]
[345549212,1734330640501,-500.0,0.00027945,7]
[345549214,1734330640514,-151.0,0.00027945,7]
[345549216,1734330640526,-151.0,0.00027945,7]
[345549219,1734330640538,-216.993552,0.00027945,7]
[345549221,1734330640551,-151.0,0.00027945,7]
[345549223,1734330640563,-244.918786,0.00027945,7]
[345549225,1734330640575,-500.0,0.00027945,7]
[345549228,1734330640587,-500.0,0.00027945,7]
[345549230,1734330640599,-151.0,0.00027945,7]
[345549232,1734330640610,-151.0,0.00027945,7]
[345549234,1734330640622,-151.0,0.00027945,7]
[345549236,1734330640634,-151.0,0.00027945,7]
[345549239,1734330640646,-515.91504526,0.00027945,7]
[345549241,1734330640657,-352.417597,0.00027945,7]
[345549243,1734330640669,-352.417597,0.00027945,7]
[345549245,1734330640683,-385.504538,0.00027945,7]
[345549247,1734330640695,-385.504538,0.00027945,7]
[345549250,1734330640706,-352.417597,0.00027945,7]
[345549252,1734330640718,-352.417597,0.00027945,7]
[345549254,1734330640728,-385.504538,0.00027945,7]
[345549256,1734330640738,-385.504538,0.00027945,7]
[345549258,1734330640747,-500.0,0.00027945,7]
[345549260,1734330640758,-500.0,0.00027945,7]
[345549262,1734330640768,-890.41,0.00027945,7]
[345549264,1734330640779,-500.0,0.00027945,7]
[345549266,1734330640788,-752.969883,0.00027945,7]
[345549268,1734330640798,-752.969883,0.00027945,7]
[345549270,1734330640807,-500.0,0.00027945,7]
[345549272,1734330640817,-517.59232035,0.00027945,7]
[345549274,1734330640827,-1064.51,0.00027945,7]
[345549287,1734330640948,-201.21609,0.00027945,7]
[345549290,1734330640963,-201.21609,0.00027945,7]
[345549292,1734330640974,-151.0,0.00027945,7]
[345549294,1734330640984,-500.0,0.00027945,7]
[345549296,1734330640994,-1771.85,0.00027945,7]
[345549298,1734330641004,-627.46290254,0.00027945,7]
[345549300,1734330641013,-595.96,0.00027945,7]
[345549302,1734330641023,-500.0,0.00027945,7]
[345549304,1734330641033,-500.0,0.00027945,30]
[345549306,1734330641043,-500.0,0.00027945,7]
[345549308,1734330641052,-866.34602253,0.00027945,30]
[345549310,1734330641068,-500.0,0.00027945,7]
[345549312,1734330641080,-500.0,0.00027945,7]
[345549314,1734330641089,-500.0,0.00027945,7]
[345549316,1734330641101,-500.0,0.00027945,7]
[345549318,1734330641111,-500.0,0.00027945,7]
[345549320,1734330641120,-500.0,0.00027945,7]
[345549322,1734330641130,-695.01,0.00027945,5]
[345549324,1734330641148,-500.0,0.00027945,7]
[345549326,1734330641159,-1000.0,0.00027945,2]
[345549328,1734330641168,-500.0,0.00027945,7]
[345549330,1734330641179,-500.0,0.00027945,7]
[345549332,1734330641189,-500.0,0.00027945,7]
[345549334,1734330641199,-336.869161,0.00027945,7]
[345549336,1734330641209,-336.869161,0.00027945,7]
[345549338,1734330641219,-500.0,0.00027945,7]
[345549340,1734330641228,-336.869161,0.00027945,7]
[345549342,1734330641238,-336.869161,0.00027945,7]
[345549344,1734330641247,-500.0,0.00027945,7]
[345549346,1734330641257,-159.69164692,0.00027945,2]
[345549348,1734330641266,-2859.63,0.00027945,7]
[345549350,1734330641276,-347.832423,0.00027945,7]
[345549352,1734330641286,-502.13809932,0.00027973,5]
[345549354,1734330641295,-3257.6933752,0.0002798,2]
[345549356,1734330641304,-865.39637627,0.00027984,2]
[345549358,1734330641313,-1018.65017898,0.0002799,2]
[345549360,1734330641322,-462.848142,0.00027996,7]
[345549362,1734330641331,-462.848142,0.00027996,7]
[345549364,1734330641341,-462.848142,0.00027996,7]
[345549366,1734330641350,-462.848142,0.00027996,7]
[345549368,1734330641359,-151.0,0.00027997,7]
[345549370,1734330641369,-151.0,0.00027997,7]
[345549372,1734330641378,-161.064489,0.00027997,7]
[345549374,1734330641387,-161.064489,0.00027997,7]
[345549376,1734330641396,-151.0,0.00027998,7]
[345549378,1734330641405,-151.0,0.00027998,7]
[345549380,1734330641414,-163.76941939,0.00027999,2]
[345549382,1734330641424,-345.048343,0.00027999,7]
[345549384,1734330641437,-345.048343,0.00027999,7]
[345549386,1734330641451,-345.048343,0.00027999,7]
[345549388,1734330641460,-345.048343,0.00027999,7]
[345549390,1734330641469,-244.664963,0.00027999,7]
[345549392,1734330641479,-151.0,0.00027999,7]
[345549394,1734330641488,-241.037004,0.00027999,7]
[345549396,1734330641497,-1000.0,0.00027999,28]
[345549398,1734330641506,-1000.0,0.00027999,28]
[345549400,1734330641515,-241.037004,0.00027999,7]
[345549402,1734330641525,-1000.0,0.00027999,28]
[345549404,1734330641534,-1000.0,0.00027999,28]
[345549406,1734330641544,-1000.0,0.00027999,28]
[345549408,1734330641554,-1000.0,0.00027999,28]
[345549410,1734330641564,-1000.0,0.00027999,28]
[345549412,1734330641574,-1000.0,0.00027999,28]
[345549414,1734330641583,-1000.0,0.00027999,28]
[345549416,1734330641592,-1000.0,0.00027999,28]
[345549418,1734330641601,-1000.0,0.00027999,28]
[345549420,1734330641610,-1000.0,0.00027999,28]
[345549422,1734330641620,-1000.0,0.00027999,28]
[345549424,1734330641630,-1000.0,0.00027999,28]
[345549426,1734330641639,-1000.0,0.00027999,28]
[345549428,1734330641649,-1000.0,0.00027999,28]
[345549430,1734330641658,-1000.0,0.00027999,28]
[345549432,1734330641668,-1000.0,0.00027999,28]
[345549434,1734330641682,-1000.0,0.00027999,28]
[345549436,1734330641692,-1000.0,0.00027999,28]
[345549438,1734330641701,-1000.0,0.00027999,28]
[345549440,1734330641711,-1000.0,0.00027999,28]
[345549442,1734330641720,-1000.0,0.00027999,28]
[345549444,1734330641729,-1000.0,0.00027999,28]
[345549446,1734330641738,-1000.0,0.00027999,28]
[345549448,1734330641747,-1000.0,0.00027999,28]
[345549450,1734330641757,-1000.0,0.00027999,28]
[345549452,1734330641767,-1000.0,0.00027999,28]
[345549454,1734330641777,-1000.0,0.00027999,28]
[345549456,1734330641786,-1000.0,0.00027999,28]
[345549458,1734330641796,-1000.0,0.00027999,28]
[345549460,1734330641805,-1000.0,0.00027999,28]
[345549462,1734330641815,-1000.0,0.00027999,28]
[345549464,1734330641824,-1000.0,0.00027999,28]
[345549466,1734330641834,-1000.0,0.00027999,28]
[345549468,1734330641843,-1000.0,0.00027999,28]
[345549470,1734330641853,-1000.0,0.00027999,28]
[345549473,1734330641862,-1000.0,0.00027999,28]
[345549475,1734330641871,-1000.0,0.00027999,28]
[345549477,1734330641881,-1000.0,0.00027999,28]
[345549479,1734330641892,-1000.0,0.00027999,28]
[345549481,1734330641901,-1000.0,0.00027999,28]
[345549483,1734330641911,-1000.0,0.00027999,28]
[345549485,1734330641920,-1000.0,0.00027999,28]
[345549487,1734330641934,-1000.0,0.00027999,28]
[345549489,1734330641943,-1000.0,0.00027999,28]
[345549491,1734330641953,-1000.0,0.00027999,28]
[345549493,1734330641962,-1000.0,0.00027999,28]
[345549495,1734330641971,-1000.0,0.00027999,28]
[345549497,1734330641981,-1000.0,0.00027999,28]
[345549499,1734330641990,-1000.0,0.00027999,28]
[345549501,1734330641999,-1000.0,0.00027999,28]
[345549503,1734330642008,-1000.0,0.00027999,28]
[345549505,1734330642017,-1000.0,0.00027999,28]
[345549507,1734330642027,-1000.0,0.00027999,28]
[345549509,1734330642036,-1000.0,0.00027999,28]
[345549511,1734330642045,-1000.0,0.00027999,28]
[345549513,1734330642054,-1000.0,0.00027999,28]
[345549515,1734330642066,-1000.0,0.00027999,28]
[345549517,1734330642076,-1000.0,0.00027999,28]
[345549519,1734330642085,-1000.0,0.00027999,28]
[345549521,1734330642095,-1000.0,0.00027999,28]
[345549523,1734330642105,-1000.0,0.00027999,28]
[345549525,1734330642114,-1000.0,0.00027999,28]
[345549528,1734330642123,-1000.0,0.00027999,28]
[345549530,1734330642132,-1000.0,0.00027999,28]
[345549532,1734330642143,-1000.0,0.00027999,28]
[345549534,1734330642152,-1000.0,0.00027999,28]
[345549536,1734330642161,-1000.0,0.00027999,28]
[345549538,1734330642171,-1000.0,0.00027999,28]
[345549540,1734330642183,-1000.0,0.00027999,28]
[345549542,1734330642192,-1000.0,0.00027999,28]
[345549544,1734330642201,-1000.0,0.00027999,28]
[345549546,1734330642211,-1000.0,0.00027999,28]
[345549548,1734330642220,-1000.0,0.00027999,28]
[345549550,1734330642230,-1000.0,0.00027999,28]
[345549552,1734330642240,-1000.0,0.00027999,28]
[345549553,1734330642250,-1000.0,0.00027999,28]
[345549554,1734330642259,-1000.0,0.00027999,28]
[345549555,1734330642268,-1000.0,0.00027999,28]
[345549556,1734330642277,-1000.0,0.00027999,28]
[345549557,1734330642286,-1000.0,0.00027999,28]
[345549558,1734330642296,-1000.0,0.00027999,28]
[345549559,1734330642306,-1000.0,0.00027999,28]
[345549560,1734330642315,-1000.0,0.00027999,28]
[345549561,1734330642324,-1000.0,0.00027999,28]
[345549562,1734330642333,-1000.0,0.00027999,28]
[345549563,1734330642342,-1000.0,0.00027999,28]
[345549564,1734330642351,-722.365631,0.00027999,28]
[345549565,1734330642360,-752.969883,0.00027999,7]
[345549566,1734330642369,-752.969883,0.00027999,7]
[345549568,1734330642379,-752.969883,0.00027999,7]
[345549570,1734330642388,-752.969883,0.00027999,7]
[345549571,1734330642398,-201.21609,0.00027999,7]
[345549573,1734330642407,-201.21609,0.00027999,7]
[345549576,1734330642416,-201.21609,0.00027999,7]
[345549577,1734330642429,-201.21609,0.00027999,7]
[345549580,1734330642439,-151.0,0.00027999,7]
[345549582,1734330642448,-151.0,0.00027999,7]
[345549584,1734330642458,-336.869161,0.00027999,7]
[345549586,1734330642467,-336.869161,0.00027999,7]
[345549588,1734330642476,-336.869161,0.00027999,7]
[345549590,1734330642486,-336.869161,0.00027999,7]
[345549591,1734330642495,-347.832423,0.00027999,7]
[345549594,1734330642505,-347.832423,0.00027999,7]
[345549595,1734330642514,-462.848142,0.00028,7]
[345549597,1734330642523,-462.848142,0.00028,7]
[345549599,1734330642532,-462.848142,0.00028,7]
[345549602,1734330642542,-462.848142,0.00028,7]
[345549604,1734330642551,-151.0,0.00028,7]
[345549606,1734330642560,-151.0,0.00028,7]
[345549608,1734330642570,-239.268985,0.00028,7]
[345549610,1734330642579,-161.064489,0.00028,7]
[345549612,1734330642589,-161.064489,0.00028,7]
[345549615,1734330642599,-345.048343,0.00028,7]
[345549619,1734330642608,-345.048343,0.00028,7]
[345549622,1734330642617,-151.0,0.00028,7]
[345549624,1734330642626,-151.0,0.00028,7]
[345549627,1734330642636,-200.552409,0.00028,7]
[345549630,1734330642645,-241.037004,0.00028,7]
[345549632,1734330642654,-241.037004,0.00028,7]
[345549634,1734330642664,-408.065282,0.00028,7]
[345549636,1734330642676,-408.065282,0.00028,7]
[345549638,1734330642685,-408.065282,0.00028,7]
[345549640,1734330642695,-408.065282,0.00028,7]
[345549642,1734330642704,-151.0,0.00028,7]
[345549644,1734330642713,-151.0,0.00028,7]
[345549646,1734330642722,-151.0,0.00028,7]
[345549648,1734330642732,-151.0,0.00028,7]
[345549650,1734330642741,-352.417597,0.00028,7]
[345549652,1734330642750,-385.504538,0.00028,7]
[345549654,1734330642760,-352.417597,0.00028,7]
[345549656,1734330642770,-385.504538,0.00028,7]
[345549658,1734330642779,-752.969883,0.00028,7]
[345549660,1734330642789,-752.969883,0.00028,7]
[345549663,1734330642798,-201.21609,0.00028,7]
[345549666,1734330642807,-201.21609,0.00028,7]
[345549670,1734330642817,-151.0,0.00028,7]
[345549671,1734330642826,-351638.0,0.00028,2]
[345549674,1734330642836,-336.869161,0.00028,7]
[345549676,1734330642845,-336.86915142,0.00028,7]
[345549678,1734330642854,-347.832423,0.00028,7]
[345549680,1734330642863,-5000.0,0.00028,2]
[345549682,1734330642872,-3077.83221851,0.00028,7]
[345549684,1734330642881,-157.82033491,0.00028027,2]
[345549686,1734330642891,-151.0,0.00028085,6]
[345549688,1734330642900,-1007.40755706,0.00028105,2]
[345549690,1734330642909,-157.8203349,0.00028137,2]
[345549692,1734330642919,-1953.20724434,0.00028185,2]
[345549694,1734330642929,-187.0,0.000282,2]
[345549696,1734330642939,-666.0,0.000282,2]
[345549698,1734330642948,-1083.884589,0.000282,2]
[345549700,1734330642957,-150.28351,0.000282,2]
[345549702,1734330642967,-704.66523866,0.00028208,2]
[345549704,1734330642976,-150.44510065,0.00028219,30]
[345549706,1734330642986,-500.0,0.00028219,30]
[345549708,1734330642996,-281.75324159,0.00028219,7]
[345549710,1734330643006,-500.0,0.00028219,7]
[345549712,1734330643017,-500.0,0.00028219,7]
[345549714,1734330643036,-500.0,0.00028219,7]
[345549716,1734330643045,-501.56450419,0.00028219,10]
[345549718,1734330643054,-462.848142,0.00028219,7]
[345549720,1734330643065,-462.848142,0.00028219,7]
[345549722,1734330643074,-500.0,0.00028219,7]
[345549724,1734330643083,-462.848142,0.00028219,7]
[345549726,1734330643092,-462.848142,0.00028219,7]
[345549728,1734330643101,-500.0,0.00028219,7]
[345549730,1734330643113,-151.0,0.00028219,7]
[345549732,1734330643122,-151.0,0.00028219,7]
[345549734,1734330643131,-2338.05,0.00028219,2]
[345549736,1734330643141,-500.0,0.00028219,7]
[345549738,1734330643150,-151.0,0.00028219,7]
[345549740,1734330643160,-151.0,0.00028219,7]
[345549742,1734330643170,-582.99,0.00028219,7]
[345549744,1734330643182,-161.064489,0.00028219,7]
[345549746,1734330643192,-161.064489,0.00028219,7]
[345549748,1734330643201,-161.064489,0.00028219,7]
[345549750,1734330643211,-161.064489,0.00028219,7]
[345549752,1734330643220,-345.048343,0.00028219,7]
[345549755,1734330643230,-345.048343,0.00028219,7]
[345549756,1734330643240,-345.048343,0.00028219,7]
[345549759,1734330643250,-345.048343,0.00028219,7]
[345549761,1734330643259,-345.048343,0.00028219,7]
[345549763,1734330643269,-345.048351,0.00028219,7]
[345549765,1734330643278,-500.0,0.00028219,7]
[345549767,1734330643287,-500.0,0.00028219,7]
[345549770,1734330643296,-500.0,0.00028219,7]
[345549773,1734330643305,-519.811135,0.00028219,7]
[345549776,1734330643314,-500.0,0.00028219,7]
[345549779,1734330643324,-158.72822,0.00028219,7]
[345549781,1734330643333,-500.0,0.00028219,7]
[345549783,1734330643342,-68254.04,0.00028219,7]
[345549785,1734330643351,-685.515377,0.00028219,7]
[345549795,1734330643440,-685.51537,0.00028219,7]
[345549797,1734330643451,-835.38,0.00028219,7]
[345549799,1734330643461,-194.44500215,0.00028219,7]
[345549801,1734330643471,-241.037004,0.00028219,7]
[345549803,1734330643480,-241.037004,0.00028219,7]
[345549805,1734330643489,-241.037004,0.00028219,7]
[345549807,1734330643498,-241.037004,0.00028219,7]
[345549809,1734330643508,-408.065282,0.00028219,7]
[345549812,1734330643517,-408.065282,0.00028219,7]
[345549814,1734330643526,-408.065282,0.00028219,7]
[345549816,1734330643535,-408.065282,0.00028219,7]
[345549817,1734330643545,-500.0,0.00028219,7]
[345549819,1734330643554,-500.0,0.00028219,7]
[345549821,1734330643564,-151.0,0.00028219,7]
[345549824,1734330643574,-156.591368,0.00028219,7]
[345549826,1734330643584,-500.0,0.00028219,7]
[345549828,1734330643593,-500.0,0.00028219,7]
[345549830,1734330643602,-151.0,0.00028219,7]
[345549832,1734330643612,-151.0,0.00028219,7]
[345549834,1734330643621,-352.417597,0.00028219,7]
[345549836,1734330643630,-385.504538,0.00028219,7]
[345549838,1734330643640,-352.417597,0.00028219,7]
[345549840,1734330643649,-385.504538,0.00028219,7]
[345549842,1734330643658,-500.0,0.00028219,7]
[345549844,1734330643667,-500.0,0.00028219,7]
[345549846,1734330643678,-890.41,0.00028219,7]
[345549848,1734330643687,-752.969883,0.00028219,7]
[345549850,1734330643697,-752.969883,0.00028219,7]
[345549852,1734330643706,-500.0,0.00028219,7]
[345549854,1734330643717,-1064.51,0.00028219,7]
[345549856,1734330643726,-201.21609,0.00028219,7]
[345549858,1734330643734,-201.21609,0.00028219,7]
[345549860,1734330643744,-151.0,0.00028219,7]
[345549862,1734330643753,-500.0,0.00028219,7]
[345549864,1734330643763,-1771.85,0.00028219,7]
[345549866,1734330643772,-595.96,0.00028219,7]
[345549868,1734330643781,-500.0,0.00028219,7]
[345549870,1734330643791,-500.0,0.00028219,7]
[345549872,1734330643800,-500.0,0.00028219,7]
[345549874,1734330643810,-500.0,0.00028219,7]
[345549876,1734330643819,-695.01,0.00028219,5]
[345549878,1734330643829,-500.0,0.00028219,7]
[345549880,1734330643839,-568.03072089,0.00028219,2]
[345549882,1734330643848,-500.0,0.00028219,7]
[345549884,1734330643857,-500.0,0.00028219,7]